Cogmind - Beta 10.2 @@@ ROGUE MODE // 2020.12.07 @ 18:44:24 Player: BloodOwl Result: Destroyed by G-34 Mercenary with Small Laser Performance ------------- Evolutions (0) 0 Regions Visited (2) 400 Robots Destroyed (23) 115 Value Destroyed (584) 584 Prototype IDs (2) 40 Alien Tech Used (0) 0 Bonus (0) 0 TOTAL SCORE: 1139 Bonus ------- None Cogmind --------- Core Integrity 0/250 Matter 188/300 Energy 250/250 System Corruption 0% Temperature Cool (6) Movement Walking (120) Location -10/Mines Parts ------- > --- POWER (1) -------- Ion Engine > --- PROPULSION (2) --- Aluminum Leg Aluminum Leg > --- UTILITY (2) ------ Propulsion Shielding Utility Shielding > --- WEAPON (2) ------- Grenade Launcher Grenade Launcher > --- INVENTORY (4) ---- Light Ion Engine Aluminum Leg Light Assault Rifle Grenade Launcher Peak State ------------ > --- POWER ------------ Ion Engine > --- PROPULSION ------- Aluminum Leg Aluminum Leg > --- UTILITY ---------- Heat Sink Small Storage Unit > --- WEAPON ----------- Particle Gun Light Assault Rifle > --- INVENTORY -------- Aluminum Leg Aluminum Leg Small Storage Unit Small Laser Assault Rifle Light Assault Rifle [Rating: 8] Favorites ----------- Power Ion Engine Engine Ion Engine Propulsion Aluminum Leg Leg Aluminum Leg Utility Utility Shielding Device Heat Sink Storage Small Storage Unit Protection Utility Shielding Weapon Grenade Launcher Energy Gun Small Laser Ballistic Gun Light Assault Rifle Launcher Grenade Launcher Slashing Weapon Mining Claw Build | -11 -10 -10 ------- Run | Scr Mat Min Slots Evolved . | . . . Power . | . . . Propulsion . | . . . Utility . | . . . Weapon . | . . . Parts Attached 31 | 6 22 3 Power 4 | 1 3 . Engine 4 | 1 3 . Core . | . . . Reactor . | . . . Propulsion 8 | 2 5 1 Treads . | . . . Leg 8 | 2 5 1 Wheel . | . . . Hover . | . . . Flight . | . . . Utility 5 | 1 3 1 Device 1 | . 1 . Storage 1 | 1 . . Processor . | . . . Hackware . | . . . Protection 3 | . 2 1 Artifact . | . . . Weapon 14 | 2 11 1 Energy Gun 3 | . 3 . Energy Cannon . | . . . Ballistic Gun 7 | 2 5 . Ballistic Cannon . | . . . Launcher 3 | . 2 1 Special Weapon . | . . . Impact Weapon . | . . . Slashing Weapon 1 | . 1 . Piercing Weapon . | . . . Special Melee Weapon . | . . . Unidentified Prototypes . | . . . Parts Lost 5 | . 5 . Power . | . . . Propulsion 2 | . 2 . Utility . | . . . Weapon 3 | . 3 . Highest Loss Streak 2 | . 2 . Average Slot Usage (%) 97 | . 97 100 Engine 14 | . 14 14 Leg 27 | . 27 28 Device 6 | . 8 . Storage 6 | . 9 . Protection 14 | . 9 28 Energy Gun 2 | . 2 . Ballistic Gun 9 | . 13 . Launcher 12 | . 6 28 Slashing Weapon 2 | . 3 . Naked Turns . | . . . Heaviest Build 14 | 12 14 13 Greatest Support 20 | 20 20 20 Greatest Overweight (x) 1 | . 1 . Average Overweight (x) . | . . . Largest Inventory Capacity 6 | 6 6 4 Average Capacity 5 | 5 5 4 Most Carried 6 | 4 6 4 Average Carried 4 | 1 4 3 Final Capacity 6 | 6 4 4 Final Carried 4 | 4 4 4 Class Distribution -------------------- 88% | Mutant 11% | Scavenger-Mutant Dominant Class ---------------- Mutant | -10/Materials Mutant | -10/Mines Resources | -11 -10 -10 ----------- Run | Scr Mat Min Matter Collected 676 | 229 319 128 Remotely . | . . . Salvage Created 541 | . 448 93 Parts 34 | . 27 7 Haulers Intercepted 1 | . 1 . Recyclers Shooed . | . . . Parts Field Recycled . | . . . Retrieved Matter . | . . . Parts Self-Destructed . | . . . Prevented . | . . . Kills | -11 -10 -10 ------- Run | Scr Mat Min Combat Hostiles Destroyed 21 | . 13 8 Guns 12 | . 12 . AOE 9 | . 1 8 Classes Destroyed 5 | . 4 1 Hauler 1 | . 1 . Watcher 1 | . 1 . Swarmer 9 | . 3 6 Grunt 10 | . 10 . Sentry 2 | . . 2 Best Kill Streak 3 | . 3 3 Combat Bots Only 3 | . 3 3 Max Kills in Single Turn 2 | . 2 2 Gunslinging . | . . . Exploded 2 | . 1 2 Melee . | . . . Uniques/NPCs Destroyed . | . . . Combat | -11 -10 -10 -------- Run | Scr Mat Min Damage Taken 1112 | . 856 256 Core 259 | . 202 57 Absorbed by Shields . | . . . Core Remaining (%) 100 | 100 . . Volleys Fired 61 | . 54 7 Largest 2 | . 2 2 Hottest 105 | . 105 60 Shots Fired 101 | . 87 14 Gun 81 | . 81 . Cannon . | . . . Launcher 20 | . 6 14 Special . | . . . Kinetic 53 | . 53 . Thermal 28 | . 28 . Explosive 20 | . 6 14 Electromagnetic . | . . . Robot Hit Streak 22 | . 22 3 Robot Miss Streak 6 | . 4 6 Penetration Max . | . . . Secondary Targets . | . . . Shots Hit Robots 68 | . 64 4 Core Hits 42 | . 31 11 Critical Hits 1 | . 1 . Critical Kills . | . . . Critical Parts Destroyed 1 | . 1 . Melee Attacks 18 | . 18 . Impact . | . . . Slashing 18 | . 18 . Piercing . | . . . Sneak Attacks . | . . . Combat Hostiles . | . . . Follow-up Attacks . | . . . Damage Inflicted 1543 | . 959 584 Guns 635 | . 635 . Cannons . | . . . Explosions 795 | . 211 584 Melee 112 | . 112 . Ramming 1 | . 1 . Kinetic 377 | . 377 . Thermal 258 | . 258 . Explosive 795 | . 211 584 Electromagnetic . | . . . Impact . | . . . Slashing 112 | . 112 . Piercing . | . . . Highest Corruption . | . . . Average Corruption . | . . . Corruption Purged . | . . . Overload Shots . | . . . Overflow Damage 66 | . 33 33 Projectiles . | . . . Explosions 56 | . 23 33 Melee 10 | . 10 . Knockbacks . | . . . Impact . | . . . Kinetic . | . . . Secondary . | . . . Self-Inflicted Damage 170 | . 26 144 Shots 8 | . 2 6 Rammed . | . . . Targets Rammed 1 | . 1 . Kicked 1 | . 1 . Crushed . | . . . Highest Temperature 152 | . 152 . Average Temperature 48 | . 48 . Received Heat Transfer 258 | . 243 15 Siege Activations . | . . . Robots Corrupted . | . . . Combat Hostiles . | . . . Parts Fried . | . . . Impact Corruptions . | . . . Robots Melted . | . . . Combat Hostiles . | . . . Parts Melted 2 | . 2 . Heat Transferred 631 | . 631 . Parts Sabotaged . | . . . Parts Stolen . | . . . Parts Stripped . | . . . Power Chain Reactions . | . . . Missiles Intercepted . | . . . Alert | -11 -10 -10 ------- Run | Scr Mat Min Peak Influence 249 | . 210 249 Initial 24 | . . 24 Average 99 | . 78 174 Maximum Alert Level 1 | . 1 1 Low Security (%) 91 | 100 99 70 Level 1 8 | . . 29 Level 2 . | . . . Level 3 . | . . . Level 4 . | . . . Level 5 . | . . . High Security . | . . . Max Security . | . . . Squads Dispatched 3 | . 3 . Investigation 2 | . 2 . Extermination . | . . . Reinforcement 1 | . 1 . Assault . | . . . Garrison . | . . . Intercept . | . . . Construction Impeded . | . . . Haulers Reinforced . | . . . Stealth | -11 -10 -10 --------- Run | Scr Mat Min Distress Signals 1 | . 1 . Communications Jammed . | . . . Distress Signals . | . . . Times Spotted 32 | . 24 8 Peak Tracking Total 3 | . 3 3 Tactical Retreats 4 | . 4 . Traps | -11 -10 -10 ------- Run | Scr Mat Min Traps Triggered 1 | . 1 . Indirectly . | . . . Trap Hack Attempts . | . . . Triggered . | . . . Disarmed . | . . . Reprogrammed . | . . . Reused . | . . . Traps Extracted . | . . . Installed . | . . . Triggered . | . . . Machines | -11 -10 -10 ---------- Run | Scr Mat Min Machines Disabled 4 | . 1 3 Max in Single Turn 2 | . 1 2 Machines Sabotaged . | . . . Garrisons Compromised . | . . . Overloaded Fab Kills . | . . . Fab Network Shutdowns . | . . . Hacking | -11 -10 -10 --------- Run | Scr Mat Min Machines Accessed 5 | . 5 . Terminals 3 | . 3 . Fabricators . | . . . Repair Stations 1 | . 1 . Recycling Units 1 | . 1 . Scanalyzers . | . . . Garrison Access . | . . . Total Hacks 9 | . 9 . Successful 6 | . 6 . Failed 3 | . 3 . Catastrophic . | . . . Database Lockouts . | . . . Manual . | . . . Terminals 5 | . 5 . Fabricators . | . . . Repair Stations 3 | . 3 . Recycling Units 1 | . 1 . Scanalyzers . | . . . Garrison Access . | . . . Terminal Hacks 3 | . 3 . Record 1 | . 1 . Prototype ID Bank 1 | . 1 . Zone Layout 1 | . 1 . Fabricator Hacks . | . . . Repair Station Hacks 2 | . 2 . Scan Component 2 | . 2 . Recycling Unit Hacks 1 | . 1 . Report Inventory 1 | . 1 . Scanalyzer . | . . . Garrison Access Hacks . | . . . Unauthorized Hacks . | . . . Terminals . | . . . Fabricators . | . . . Repair Stations . | . . . Recycling Units . | . . . Scanalyzers . | . . . Garrison Access . | . . . Data Cores Recovered . | . . . Used . | . . . Hacking Detections 3 | . 3 . Full Trace Events 1 | . 1 . Feedback Events . | . . . Feedback Blocked . | . . . Robot Schematics Acquired . | . . . Robots Built . | . . . Matter . | . . . Time . | . . . Total Robot Build Rating . | . . . Part Schematics Acquired . | . . . Parts Built . | . . . Matter . | . . . Time . | . . . Total Part Build Rating . | . . . Parts Repaired . | . . . Time . | . . . Parts Recycled . | . . . Recycled Matter . | . . . Retrieved Matter . | . . . Retrieved Components . | . . . Parts Scanalyzed . | . . . Part Schematics Acquired . | . . . Parts Damaged . | . . . Bothacking | -11 -10 -10 ------------ Run | Scr Mat Min Used RIF Installer . | . . . Robots Hacked . | . . . Non-combat . | . . . Combat . | . . . Robot Hacks Applied . | . . . Relay Couplers Released . | . . . Robots Rewired . | . . . Allies Hacked . | . . . Hacks Repelled . | . . . Allies | -11 -10 -10 -------- Run | Scr Mat Min Total Allies . | . . . Largest Group . | . . . Highest-Rated Group . | . . . Highest-Rated Ally . | . . . Total Orders . | . . . Ally Attacks . | . . . Total Damage . | . . . Kills . | . . . Allies Corrupted . | . . . Allies Melted . | . . . Intel | -11 -10 -10 ------- Run | Scr Mat Min Robot Analysis Total . | . . . Derelict Logs Recovered 1 | . . 1 Drone Launches . | . . . Drone Recoveries . | . . . Exploration | -11 -10 -10 ------------- Run | Scr Mat Min Turns Passed 1573 | 86 1083 404 Spaces Moved 1053 | 61 679 313 Core 1 | 1 . . Treads . | . . . Legs 1052 | 60 679 313 Wheels . | . . . Hover . | . . . Flight . | . . . Fastest Speed 50 | 50 120 120 Average Speed 120 | 118 121 120 Slowest Speed 150 | 120 150 120 Overloaded Moves . | . . . Propulsion Burnouts . | . . . Robots Hopped . | . . . Cave-ins Triggered . | . . . Exploration Rate (%) 51 | 4 81 69 Regions Visited 2 Branch Regions 1 Pre-discovered Areas . | . . . Known Exits Taken . | . . . Unknown Exits Taken 2 | 1 1 . Scrap Searched . | . . . Spaces Dug 2 | . 2 . Terrain Destroyed 113 | . 17 96 Melee 2 | . 2 . Projectile . | . . . AOE 111 | . 15 96 Terrain Rammed . | . . . Walls Destroyed . | . . . Machines Disabled . | . . . Actions | -11 -10 -10 --------- Run | Scr Mat Min Total 1226 | 71 829 326 Wait 24 | 1 23 . Move 1051 | 60 678 313 Hop . | . . . Pick Up 16 | 4 11 1 Fast Attach 14 | 6 7 1 Attach 8 | . 8 . Detach 4 | . 4 . Swap 9 | . 7 2 Drop 20 | . 18 2 Fire 61 | . 54 7 Melee 18 | . 18 . Ram . | . . . Kick 1 | . 1 . Crush . | . . . Escape Stasis . | . . . Rewire . | . . . Trap . | . . . Miscellaneous . | . . . Route ------- -11/Scrapyard -10/Materials (discovered 4 exits: [*Mat x2] / [*Min x2]) -10/Mines (discovered 2 exits: [*Mat x2]) History --------- Turn | Location | Event 5 | -11/Scrapyard | Discovered new exit (range 16) 87 | -11/Scrapyard | Entered Materials 125 | -10/Materials | Discovered new exit (range 16) 305 | -10/Materials | Build established: Mutant 322 | -10/Materials | Discovered new exit (range 7) 698 | -10/Materials | Core integrity fell below 50% 735 | -10/Materials | Core integrity fell below 20% 783 | -10/Materials | Discovered new exit (range 12) 961 | -10/Materials | Discovered new exit (range 15) 1170 | -10/Materials | Entered Mines 1172 | -10/Mines | Met a Derelict bent on vengeance 1256 | -10/Mines | Discovered new exit (range 13) 1263 | -10/Mines | Joined a pair of Derelicts in attacking an 0b10 outpost 1395 | -10/Mines | Found a hidden stash of uninstalled traps 1557 | -10/Mines | Learned location of 1 exit from Materials 1559 | -10/Mines | Discovered new exit (range 4) 1574 | -10/Mines | Destroyed by G-34 Mercenary with Small Laser Last Messages --------------- 01263_ A derelict emerges from the shadows: "We've had our eye on this brand new outpost for a little while, just waiting for an opportunity to strike. Need some help?" 01265_ Machine disabled. 01265_ Y-45 Defender destroyed. 01271_ Acquired 36 matter. 01272_ Acquired 41 matter. 01276_ Dropped Utility Shielding. 01279_ Acquired Propulsion Shielding. 01285_ The unstable cave ceiling collapses. 01395_ A stash of uninstalled traps is collected here! 01446_ Destroyed Flight Unit. 01446_ S-10 Pest destroyed. 01449_ Pulverizer disabled. 01455_ S-10 Pest destroyed. 01466_ The unstable cave ceiling collapses. 01557_ Acquired derelict log, extracted data. Data stored: Materials exits (x1). 01559_ Acquired 51 matter. 01559_ EXIT=FOUND Map ----- +----------------------------------------------------+ | """ #???????##### #????# | | """ #####???????????# #????# | | #??????????????## #????# """" """ | | #?????????????## & ##???# """" """ | | #?????????????# & ##### """" """ # | | ######?????????????# & ## | | ???????????????????## # * | | ????????????????????# ################ [ # | | ????????????????????## ## ##??????????????## # | | ?????????????????????##### #???????????????# | | ?????????????????????????# #???????????????## # | | ?????????????????????????# ##############???### # | | ?????????????????????????# #?????# ## | | ?????????????????????????############## ####### #? | | ??????????????????????????????????????# #? | | ??????????????????????????????????????# #########? | | ??????????????????????????????????????# #????????? | | ??????????????????????????????????????# #????????? | | ???????????? ?????????????????????????# #????????? | | ???????????? ###??????????????###???# #????????? | | ???????????? ????????????## ###?# #????????? | | ??????????? ??????????# ### #????????? | | ????????????# ???####??# ## ####### | | ?????????????# ### #### | | ????????????????# ## | | ????????????????# @ t ####### ### | | ????????????????# %### ## g ##??????????? | | ?????????????????????####?##### ###???????????? | | ??????????????????????????????# ##?????????????? | | ????????????????????#########?# ##??????????????? | | ????????????????????# # #???????????????? | | ????????????????????# < # #???????????????? | | ????????????????????# = ! #???????????????? | | ????????????????????# # #???????????????? | | ????????????????????########### ??????????????? | | ??????????????????????????????# $ ????????????? | | ??????????????????????????????########???????????? | | ?????????????????????????????????????????????????? | | ?????????????????????????????????????????????????? | | ?????????????????????????????????????????????????? | | ?????????????????????????????????????????????????? | | ?????????????????????????????????????????????????? | | ?????????????????????????????????????????????????? | | ?????????????????????????????????????????????????? | | ?????????????????????????????????????????????????? | | | | | | | | | | | +----------------------------------------------------+ Best States ------------- Heat Dissipation 35 Energy Generation 10 Energy Capacity 250 Matter Stores 300 Matter Capacity 300 Sight Range 16 Terrain Scan Density 10 Propulsion Shielding 33 Utility Shielding 33 Evasion (%) 40 Item Schematics ----------------- None Robot Schematics ------------------ None Fabricated ------------ Nothing Alien Tech Used ----------------- None Achievements -------------- Let's See Who's Tougher Challenges ------------ None Game ------ Seed GravmagActuatorInterpreter Manual? 0 Play Time 00:25:22 Cumulative 4.4 hours Start 2020.12.07 @ 18:14:42 End 2020.12.07 @ 18:44:24 Sessions 1 Manual Loads 0 Difficulty Rogue Special Mode None Game No. 5 Rogue 5 Adventurer 0 Explorer 0 Win Type - Total 0 Types 0/0/0/0/0/0/0/0/0 Lore% 10 Gallery% 5 Achievement% 7 Wizard Run 0 Options --------- ASCII 0 Keyboard 1 Movement Numpad Keybinds 0 Fullscreen 2 Font 24/Terminus Map View 76x50 Tactical HUD 1 Map Filters NONE Filters NONE Steam 1 RUN: d78af2d3-5a13-4c6f-90e7-7939b39feca3